[Event "Championnat d'Europe de Blitz"]
[Date "2024.12.09"]
[White "Eftovski, Mateo"]
[Black "Gatineau, Yovann"]
[WhiteElo "2029"]
[BlackElo "2363"]
[Round "5.49"]
[Result "0-1"]
[TimeControl "180+2"]

1. d4 {[%clk 00:03:03]} Nf6 {[%emt 00:00:01] [%clk 00:03:03]} 2. c4 {[%emt
00:00:01] [%clk 00:03:05]} e6 {[%emt 00:00:03] [%clk 00:03:04]} 3. a3 {[%clk
00:03:06]} d5 {[%clk 00:03:05]} 4. Nc3 {[%emt 00:00:04]} c5 {[%clk 00:03:03]} 5.
e3 {[%emt 00:00:01] [%clk 00:03:08]} Nc6 {[%emt 00:00:02] [%clk 00:03:03]} 6.
Nf3 {[%emt 00:00:01] [%clk 00:03:09]} cxd4 {[%emt 00:00:06] [%clk 00:03:00]} 7.
exd4 {[%clk 00:03:10]} Be7 {[%emt 00:00:02] [%clk 00:02:59]} 8. Be2 {[%emt
00:00:07] [%clk 00:03:05]} dxc4 {[%emt 00:00:02] [%clk 00:03:00]} 9. Bxc4 {[%emt
00:00:03] [%clk 00:03:03]} O-O {[%emt 00:00:03] [%clk 00:02:59]} 10. O-O {[%emt
00:00:03] [%clk 00:03:02]} b6 {[%emt 00:00:08] [%clk 00:02:54]} 11. Qd3 {[%emt
00:00:08] [%clk 00:02:56]} Bb7 {[%emt 00:00:34] [%clk 00:02:22]} 12. Ba2 {[%emt
00:00:10] [%clk 00:02:48]} Na5 {[%emt 00:00:30] [%clk 00:01:54]} 13. Ne5 {[%emt
00:00:24] [%clk 00:02:26]} Nc6 {[%emt 00:00:22] [%clk 00:01:34]} 14. Nf3 {[%emt
00:00:12] [%clk 00:02:16]} Re8 {[%emt 00:00:07] [%clk 00:01:29]} 15. Re1 {[%emt
00:00:34] [%clk 00:01:44]} Bf8 {[%emt 00:00:06] [%clk 00:01:25]} 16. Bg5 {[%emt
00:00:02] [%clk 00:01:43]} h6 {[%emt 00:00:05] [%clk 00:01:22]} 17. Bh4 {[%emt
00:00:04] [%clk 00:01:42]} Ne7 {[%emt 00:00:29] [%clk 00:00:56]} 18. Rad1 {[%emt
00:00:30] [%clk 00:01:14]} Nf5 {[%emt 00:00:04] [%clk 00:00:54]} 19. Bg3 {[%emt
00:00:28] [%clk 00:00:47]} Rc8 {[%emt 00:00:02] [%clk 00:00:55]} 20. Bb1 {[%emt
00:00:01] [%clk 00:00:47]} Nxg3 {[%emt 00:00:11] [%clk 00:00:46]} 21. hxg3
{[%clk 00:00:48]} g6 {[%emt 00:00:02] [%clk 00:00:47]} 22. Ne5 {[%emt 00:00:06]
[%clk 00:00:43]} Rc7 {[%emt 00:00:13] [%clk 00:00:36]} 23. Qe2 {[%emt 00:00:13]
[%clk 00:00:33]} Bg7 {[%emt 00:00:11] [%clk 00:00:27]} 24. Qe3 {[%emt 00:00:24]
[%clk 00:00:10]} Nd5 {[%emt 00:00:04] [%clk 00:00:26]} 25. Nxd5 {[%emt 00:00:02]
[%clk 00:00:10]} Qxd5 {[%emt 00:00:03] [%clk 00:00:25]} 26. Be4 {[%emt 00:00:01]
[%clk 00:00:10]} Qxe4 {[%emt 00:00:08] [%clk 00:00:19]} 27. Qxe4 {[%clk
00:00:11]} Bxe4 {[%emt 00:00:02]} 28. Rxe4 {[%clk 00:00:12]} Rc2 {[%clk
00:00:22]} 29. Nd3 {[%emt 00:00:04] [%clk 00:00:10]} Rd8 {[%emt 00:00:02] [%clk
00:00:22]} 30. Kf1 {[%emt 00:00:05] [%clk 00:00:07]} a5 {[%emt 00:00:13] [%clk
00:00:12]} 31. Re2 {[%emt 00:00:01] [%clk 00:00:07]} Rxe2 {[%emt 00:00:03] [%clk
00:00:11]} 32. Kxe2 {[%clk 00:00:08]} Rxd4 {[%emt 00:00:01] [%clk 00:00:12]} 33.
Rc1 {[%emt 00:00:01] [%clk 00:00:09]} Rd6 {[%emt 00:00:04] [%clk 00:00:10]} 34.
Rc2 {[%emt 00:00:05] [%clk 00:00:07]} Bd4 {[%clk 00:00:11]} 35. f3 {[%emt
00:00:02] [%clk 00:00:07]} Kg7 {[%clk 00:00:12]} 36. g4 {[%clk 00:00:09]} Kf6
{[%emt 00:00:03] [%clk 00:00:11]} 37. Rc8 {[%emt 00:00:03] [%clk 00:00:08]} Rd5
{[%emt 00:00:05] [%clk 00:00:07]} 38. Rc4 {[%emt 00:00:03] [%clk 00:00:08]} Be5
{[%emt 00:00:06] [%clk 00:00:04]} 39. a4 {[%emt 00:00:02] [%clk 00:00:08]} Bd6
{[%clk 00:00:05]} 40. Rc6 {[%emt 00:00:02] [%clk 00:00:08]} Be5 {[%emt 00:00:04]
[%clk 00:00:04]} 41. Rxb6 {[%clk 00:00:08]} Bd4 {[%emt 00:00:03] [%clk
00:00:03]} 42. Rb5 {[%clk 00:00:09]} Rxb5 {[%emt 00:00:02] [%clk 00:00:03]} 43.
axb5 {[%clk 00:00:10]} e5 {[%emt 00:00:01] [%clk 00:00:04]} 44. b3 {[%emt
00:00:01] [%clk 00:00:11]} Ke6 {[%clk 00:00:05]} 45. Ne1 {[%emt 00:00:07] [%clk
00:00:06]} Kd5 {[%clk 00:00:06]} 46. Kd3 {[%emt 00:00:01] [%clk 00:00:06]} Kc5
{[%emt 00:00:03] [%clk 00:00:06]} 47. b6 {[%emt 00:00:01] [%clk 00:00:07]} Kxb6
{[%emt 00:00:03]} 48. Kc4 {[%clk 00:00:08]} Kc6 {[%emt 00:00:03] [%clk
00:00:06]} 49. Nd3 {[%emt 00:00:01] [%clk 00:00:08]} f5 {[%emt 00:00:04] [%clk
00:00:04]} 50. gxf5 {[%emt 00:00:02] [%clk 00:00:08]} gxf5 {[%clk 00:00:06]} 51.
Nc1 {[%emt 00:00:05] [%clk 00:00:05]} Kd6 {[%emt 00:00:04] [%clk 00:00:04]} 52.
Ne2 {[%clk 00:00:06]} Bb6 {[%clk 00:00:05]} 53. Ng3 {[%clk 00:00:07]} Ke6 {[%clk
00:00:07]} 54. Kb5 {[%clk 00:00:08]} Bd8 {[%emt 00:00:01] [%clk 00:00:08]} 55.
Kc6 {[%clk 00:00:09]} Kf6 {[%emt 00:00:04] [%clk 00:00:06]} 56. Kd5 {[%emt
00:00:01] [%clk 00:00:10]} Kg5 {[%emt 00:00:02] [%clk 00:00:05]} 57. Ne2 {[%clk
00:00:11]} Bc7 {[%emt 00:00:01] [%clk 00:00:06]} 58. Kc6 {[%emt 00:00:02] [%clk
00:00:10]} Bb8 {[%emt 00:00:02] [%clk 00:00:07]} 59. Kd5 {[%clk 00:00:12]} h5
{[%emt 00:00:03] [%clk 00:00:05]} 60. Ke6 {[%emt 00:00:08] [%clk 00:00:06]} e4
{[%emt 00:00:03] [%clk 00:00:04]} 61. fxe4 {[%emt 00:00:02] [%clk 00:00:06]}
fxe4 {[%clk 00:00:05]} 62. Kd5 {[%emt 00:00:02] [%clk 00:00:06]} e3 {[%emt
00:00:01] [%clk 00:00:06]} 63. Ke4 {[%emt 00:00:01] [%clk 00:00:07]} Ba7 {[%clk
00:00:08]} 64. Nf4 {[%emt 00:00:03] [%clk 00:00:05]} Kg4 {[%emt 00:00:04] [%clk
00:00:06]} 65. Ne2 {[%emt 00:00:02] [%clk 00:00:06]} h4 {[%clk 00:00:07]} 66.
Kd3 {[%emt 00:00:02] [%clk 00:00:05]} Kf5 {[%emt 00:00:03] [%clk 00:00:06]} 67.
Nd4+ {[%emt 00:00:03] [%clk 00:00:04]} Bxd4 {[%emt 00:00:02] [%clk 00:00:07]}
0-1

[Site "Europe Echecs"]

[Event "Championnat d'Europe de Blitz"]
[Date "2024.12.09"]
[White "Molina Carretero, Daniel"]
[Black "Kuzubov, Yuriy"]
[WhiteElo "2195"]
[BlackElo "2595"]
[Round "5.50"]
[Result "0-1"]
[TimeControl "180+2"]

1. c4 {[%emt 00:00:01] [%clk 00:03:03]} e5 {[%emt 00:00:01] [%clk 00:03:03]} 2.
g3 {[%emt 00:00:03] [%clk 00:03:04]} Nc6 {[%clk 00:03:03]} 3. Bg2 {[%emt
00:00:01] [%clk 00:03:04]} f5 {[%emt 00:00:02] [%clk 00:03:04]} 4. Nc3 {[%emt
00:00:02] [%clk 00:03:03]} Nf6 {[%emt 00:00:02] [%clk 00:03:04]} 5. Nf3 {[%emt
00:00:08] [%clk 00:02:58]} Bb4 {[%emt 00:00:17] [%clk 00:02:48]} 6. Nd5 {[%emt
00:00:06] [%clk 00:02:55]} a5 {[%emt 00:00:15] [%clk 00:02:35]} 7. O-O {[%emt
00:00:03] [%clk 00:02:54]} O-O {[%emt 00:00:04] [%clk 00:02:33]} 8. Ne1 {[%emt
00:00:14] [%clk 00:02:42]} d6 {[%emt 00:00:10] [%clk 00:02:25]} 9. Nc2 {[%emt
00:00:07] [%clk 00:02:38]} Bc5 {[%emt 00:00:07] [%clk 00:02:20]} 10. d3 {[%clk
00:02:38]} Nxd5 {[%emt 00:00:18] [%clk 00:02:04]} 11. Bxd5+ {[%emt 00:00:03]
[%clk 00:02:37]} Kh8 {[%emt 00:00:01] [%clk 00:02:05]} 12. Be3 {[%emt 00:00:09]
[%clk 00:02:30]} Bxe3 {[%emt 00:00:07] [%clk 00:02:01]} 13. Nxe3 {[%emt
00:00:31] [%clk 00:02:01]} f4 {[%clk 00:02:01]} 14. Nc2 {[%emt 00:00:24] [%clk
00:01:39]} Bh3 {[%emt 00:00:02] [%clk 00:02:01]} 15. Bg2 {[%emt 00:00:03] [%clk
00:01:39]} Qd7 {[%emt 00:00:03] [%clk 00:02:00]} 16. d4 {[%emt 00:00:46] [%clk
00:00:55]} Rae8 {[%emt 00:00:12] [%clk 00:01:50]} 17. dxe5 {[%emt 00:00:08]
[%clk 00:00:50]} Rxe5 {[%emt 00:00:24]} 18. Qd3 {[%clk 00:00:33]} Rh5 {[%emt
00:00:25] [%clk 00:01:23]} 19. Bf3 {[%emt 00:00:18] [%clk 00:00:18]} Ne5 {[%emt
00:00:04] [%clk 00:01:21]} 20. Qd4 {[%emt 00:00:12] [%clk 00:00:07]} Nxf3+
{[%emt 00:00:02] [%clk 00:01:21]} 21. exf3 {[%emt 00:00:02] [%clk 00:00:08]}
Bxf1 {[%clk 00:01:21]} 22. Kxf1 {[%emt 00:00:04] [%clk 00:00:07]} Rxh2 {[%emt
00:00:02] [%clk 00:01:20]} 23. Ke2 {[%emt 00:00:05] [%clk 00:00:05]} Re8+ {[%emt
00:00:06] [%clk 00:01:16]} 24. Kd3 {[%clk 00:00:06]} fxg3 {[%emt 00:00:09] [%clk
00:01:10]} 25. Rg1 {[%emt 00:00:04] [%clk 00:00:04]} Qf5+ {[%emt 00:00:02] [%clk
00:01:09]} 26. Kc3 {[%emt 00:00:01] [%clk 00:00:06]} Qxf3+ {[%emt 00:00:02]
[%clk 00:01:09]} 27. Ne3 {[%emt 00:00:04] [%clk 00:00:04]} Rxf2 {[%emt 00:00:04]
[%clk 00:01:06]} 28. Rh1 {[%emt 00:00:04] [%clk 00:00:03]} Qxe3+ {[%emt
00:00:02] [%clk 00:01:06]} 0-1

[Site "Europe Echecs"]

[Event "Championnat d'Europe de Blitz"]
[Date "2024.12.09"]
[White "Saraci, Nderim"]
[Black "Kesidis, Odyseas"]
[WhiteElo "2431"]
[BlackElo "2241"]
[Round "5.51"]
[Result "0-1"]
[TimeControl "180+2"]

1. d4 {[%clk 00:03:03]} Nf6 {[%emt 00:00:05] [%clk 00:03:03]} 2. Nf3 {[%clk
00:03:03]} g6 {[%clk 00:03:03]} 3. e3 {[%emt 00:00:01] [%clk 00:03:04]} Bg7
{[%emt 00:00:02] [%clk 00:03:03]} 4. b3 {[%emt 00:00:01] [%clk 00:03:05]} O-O
{[%emt 00:00:08] [%clk 00:02:58]} 5. Bb2 {[%clk 00:03:05]} d5 {[%emt 00:00:02]
[%clk 00:02:59]} 6. c4 {[%emt 00:00:02] [%clk 00:03:06]} c6 {[%emt 00:00:08]
[%clk 00:02:53]} 7. h3 {[%emt 00:00:02] [%clk 00:03:06]} Bf5 {[%emt 00:00:03]
[%clk 00:02:52]} 8. Be2 {[%emt 00:00:04] [%clk 00:03:04]} a5 {[%emt 00:00:04]
[%clk 00:02:51]} 9. Nc3 {[%emt 00:00:04] [%clk 00:03:02]} Ne4 {[%emt 00:00:06]
[%clk 00:02:47]} 10. Na4 {[%emt 00:00:12] [%clk 00:02:52]} Nd7 {[%emt 00:00:23]
[%clk 00:02:26]} 11. O-O {[%emt 00:00:23] [%clk 00:02:31]} Qb8 {[%emt 00:00:06]
[%clk 00:02:22]} 12. cxd5 {[%emt 00:00:13] [%clk 00:02:20]} cxd5 {[%emt
00:00:03] [%clk 00:02:21]} 13. Bb5 {[%emt 00:00:37] [%clk 00:01:45]} Qd6 {[%emt
00:00:07] [%clk 00:02:17]} 14. Rc1 {[%emt 00:00:05] [%clk 00:01:41]} Rfc8 {[%emt
00:00:02] [%clk 00:02:17]} 15. Qe2 {[%emt 00:00:06] [%clk 00:01:38]} h5 {[%emt
00:00:16] [%clk 00:02:02]} 16. Rfd1 {[%emt 00:00:03] [%clk 00:01:37]} Bf6 {[%emt
00:00:20] [%clk 00:01:45]} 17. Qe1 {[%emt 00:00:21] [%clk 00:01:18]} g5 {[%emt
00:00:15] [%clk 00:01:33]} 18. Bxd7 {[%emt 00:00:19] [%clk 00:01:00]} Bxd7
{[%emt 00:00:08] [%clk 00:01:28]} 19. Nc5 {[%emt 00:00:14] [%clk 00:00:48]} g4
{[%emt 00:00:34] [%clk 00:00:56]} 20. Ne5 {[%emt 00:00:17] [%clk 00:00:33]} Bf5
{[%emt 00:00:32] [%clk 00:00:26]} 21. Nxb7 {[%emt 00:00:12] [%clk 00:00:24]} Qb8
{[%emt 00:00:04] [%clk 00:00:24]} 22. Nxa5 {[%emt 00:00:09] [%clk 00:00:16]}
Rxc1 {[%emt 00:00:05] [%clk 00:00:21]} 23. Rxc1 {[%clk 00:00:17]} gxh3 {[%emt
00:00:05] [%clk 00:00:18]} 24. Nac6 {[%emt 00:00:01] [%clk 00:00:18]} Qd6 {[%emt
00:00:05] [%clk 00:00:16]} 25. f3 {[%clk 00:00:19]} Ng5 {[%emt 00:00:05] [%clk
00:00:13]} 26. Qg3 {[%emt 00:00:06] [%clk 00:00:16]} Kh7 {[%emt 00:00:02] [%clk
00:00:13]} 27. f4 {[%emt 00:00:07] [%clk 00:00:11]} Ne4 {[%emt 00:00:09] [%clk
00:00:07]} 28. Qf3 {[%clk 00:00:12]} Rg8 {[%emt 00:00:02] [%clk 00:00:07]} 29.
Qxh5+ {[%clk 00:00:12]} Kg7 {[%emt 00:00:04] [%clk 00:00:06]} 30. Qxf5 {[%emt
00:00:02] [%clk 00:00:11]} h2+ {[%emt 00:00:05] [%clk 00:00:03]} 31. Kxh2 {[%emt
00:00:05] [%clk 00:00:09]} Rh8+ {[%emt 00:00:01] [%clk 00:00:04]} 32. Kg1 {[%emt
00:00:02] [%clk 00:00:08]} Rh1+ {[%clk 00:00:05]} 33. Kxh1 {[%clk 00:00:09]}
Ng3+ {[%emt 00:00:01] [%clk 00:00:06]} 34. Kg1 {[%clk 00:00:10]} Nxf5 {[%clk
00:00:07]} 35. Kf2 {[%emt 00:00:04] [%clk 00:00:09]} Bxe5 {[%emt 00:00:02] [%clk
00:00:07]} 36. Nxe5 {[%emt 00:00:01] [%clk 00:00:09]} Qh6 {[%emt 00:00:02] [%clk
00:00:07]} 37. Nf3 {[%emt 00:00:02] [%clk 00:00:10]} Nd6 {[%emt 00:00:02] [%clk
00:00:08]} 38. Ba3 {[%emt 00:00:06]} Ne4+ {[%clk 00:00:09]} 39. Ke2 {[%emt
00:00:02] [%clk 00:00:06]} Qg6 {[%emt 00:00:03] [%clk 00:00:08]} 40. Kd1 {[%emt
00:00:05]} Qxg2 {[%emt 00:00:02] [%clk 00:00:07]} 41. Bxe7 {[%emt 00:00:03]
[%clk 00:00:03]} Qxf3+ {[%emt 00:00:02] [%clk 00:00:08]} 42. Kc2 {[%clk
00:00:04]} Qe2+ {[%emt 00:00:01] [%clk 00:00:08]} 43. Kb1 {[%emt 00:00:01] [%clk
00:00:05]} Nd2+ {[%emt 00:00:03] [%clk 00:00:08]} 44. Kb2 {[%clk 00:00:06]} Nc4+
{[%emt 00:00:02] [%clk 00:00:07]} 45. Kc3 {[%emt 00:00:01] [%clk 00:00:07]}
Qxe3+ {[%emt 00:00:02] [%clk 00:00:07]} 46. Kc2 {[%clk 00:00:08]} Qd2+ {[%emt
00:00:02] [%clk 00:00:07]} 47. Kb1 {[%emt 00:00:01] [%clk 00:00:09]} Qb2# {[%emt
00:00:01] [%clk 00:00:09]} 0-1

[Site "Europe Echecs"]

[Event "Championnat d'Europe de Blitz"]
[Date "2024.12.09"]
[White "Biljanic, Ljubomir"]
[Black "Samunenkov, Ihor"]
[WhiteElo "2130"]
[BlackElo "2543"]
[Round "5.52"]
[Result "0-1"]
[TimeControl "180+2"]

1. d4 {[%emt 00:15:03] [%clk 00:03:03]} d5 {[%emt 00:00:04] [%clk 00:03:02]} 2.
c4 {[%clk 00:03:03]} c6 {[%emt 00:00:02] [%clk 00:03:02]} 3. Nf3 {[%clk
00:03:03]} Nf6 {[%emt 00:00:03] [%clk 00:03:02]} 4. e3 {[%emt 00:00:02] [%clk
00:03:03]} e6 {[%emt 00:00:02] [%clk 00:03:02]} 5. Nc3 {[%emt 00:00:01] [%clk
00:03:03]} Nbd7 {[%emt 00:00:03] [%clk 00:03:02]} 6. Qc2 {[%emt 00:00:03] [%clk
00:03:02]} Bd6 {[%emt 00:00:02] [%clk 00:03:02]} 7. Bd3 {[%emt 00:00:10] [%clk
00:02:53]} O-O {[%emt 00:00:03] [%clk 00:03:01]} 8. O-O {[%emt 00:00:05] [%clk
00:02:49]} dxc4 {[%emt 00:00:04] [%clk 00:03:00]} 9. Bxc4 {[%emt 00:00:01] [%clk
00:02:50]} a6 {[%emt 00:00:03] [%clk 00:03:00]} 10. a4 {[%emt 00:00:26] [%clk
00:02:26]} c5 {[%emt 00:00:22] [%clk 00:02:40]} 11. dxc5 {[%emt 00:00:28] [%clk
00:02:00]} Bxc5 {[%emt 00:00:04] [%clk 00:02:38]} 12. e4 {[%emt 00:00:19] [%clk
00:01:43]} Qc7 {[%emt 00:00:07] [%clk 00:02:33]} 13. Qe2 {[%emt 00:00:15] [%clk
00:01:29]} Ng4 {[%emt 00:00:38] [%clk 00:01:58]} 14. h3 {[%emt 00:00:48] [%clk
00:00:43]} Nge5 {[%emt 00:00:04] [%clk 00:01:56]} 15. Nxe5 {[%emt 00:00:12]
[%clk 00:00:33]} Nxe5 {[%emt 00:00:04] [%clk 00:01:54]} 0-1

[Site "Europe Echecs"]

[Event "Championnat d'Europe de Blitz"]
[Date "2024.12.09"]
[White "Schneider, Ilja"]
[Black "Sivan, Yaacov"]
[WhiteElo "2414"]
[BlackElo "2273"]
[Round "5.53"]
[Result "1-0"]
[TimeControl "180+2"]

1. e4 {[%emt 00:00:03] [%clk 00:03:02]} c5 {[%emt 00:00:03] [%clk 00:03:05]} 2.
Nc3 {[%clk 00:03:03]} Nc6 {[%clk 00:03:06]} 3. Bb5 {[%clk 00:03:04]} g6 {[%emt
00:00:03] [%clk 00:03:05]} 4. Bxc6 {[%clk 00:03:05]} dxc6 {[%emt 00:00:03] [%clk
00:03:04]} 5. f4 {[%emt 00:00:01] [%clk 00:03:06]} Bg7 {[%emt 00:00:02] [%clk
00:03:04]} 6. Nf3 {[%emt 00:00:01] [%clk 00:03:07]} Nf6 {[%emt 00:00:01] [%clk
00:03:04]} 7. O-O {[%emt 00:00:02] [%clk 00:03:07]} O-O {[%emt 00:00:04] [%clk
00:03:02]} 8. d3 {[%emt 00:00:01] [%clk 00:03:08]} b6 {[%emt 00:00:31] [%clk
00:02:33]} 9. Qe1 {[%emt 00:00:06] [%clk 00:03:05]} Nd7 {[%emt 00:00:15] [%clk
00:02:20]} 10. Qh4 {[%emt 00:00:25] [%clk 00:02:41]} e5 {[%emt 00:00:13] [%clk
00:02:09]} 11. Qg3 {[%emt 00:00:39] [%clk 00:02:04]} exf4 {[%emt 00:00:25] [%clk
00:01:47]} 12. Bxf4 {[%clk 00:02:05]} Re8 {[%emt 00:00:03] [%clk 00:01:45]} 13.
Bc7 {[%emt 00:00:22] [%clk 00:01:45]} Qf6 {[%emt 00:00:22] [%clk 00:01:25]} 14.
Ne5 {[%emt 00:00:18] [%clk 00:01:29]} Nxe5 {[%emt 00:00:45] [%clk 00:00:42]} 15.
Rxf6 {[%emt 00:00:02] [%clk 00:01:29]} Bxf6 {[%emt 00:00:01] [%clk 00:00:43]}
16. Rf1 {[%clk 00:01:30]} Bg7 {[%clk 00:00:45]} 17. Nd1 {[%emt 00:00:17] [%clk
00:01:14]} Bd7 {[%emt 00:00:10] [%clk 00:00:37]} 18. Qh4 {[%emt 00:00:31] [%clk
00:00:45]} Rac8 {[%emt 00:00:07] [%clk 00:00:33]} 19. Bd6 {[%clk 00:00:45]} f6
{[%emt 00:00:11] [%clk 00:00:24]} 20. Ne3 {[%emt 00:00:05] [%clk 00:00:42]} Re6
{[%emt 00:00:09] [%clk 00:00:18]} 21. Bxe5 {[%emt 00:00:02] [%clk 00:00:41]}
Rxe5 {[%emt 00:00:02] [%clk 00:00:18]} 22. Rxf6 {[%emt 00:00:14] [%clk
00:00:29]} Bxf6 {[%emt 00:00:03] [%clk 00:00:18]} 23. Qxf6 {[%emt 00:00:01]
[%clk 00:00:30]} Rce8 {[%emt 00:00:03] [%clk 00:00:17]} 24. h4 {[%emt 00:00:06]
[%clk 00:00:25]} R5e6 {[%emt 00:00:02] [%clk 00:00:17]} 25. Qf4 {[%emt 00:00:01]
[%clk 00:00:26]} R6e7 {[%emt 00:00:09] [%clk 00:00:10]} 26. h5 {[%emt 00:00:03]
[%clk 00:00:25]} Rf7 {[%emt 00:00:02] [%clk 00:00:09]} 27. Qg5 {[%emt 00:00:02]
[%clk 00:00:25]} Kg7 {[%emt 00:00:03] [%clk 00:00:08]} 28. h6+ {[%clk 00:00:26]}
Kg8 {[%emt 00:00:02] [%clk 00:00:09]} 29. Nc4 {[%clk 00:00:26]} Rfe7 {[%emt
00:00:05] [%clk 00:00:06]} 30. Nd6 {[%emt 00:00:03] [%clk 00:00:25]} Re5 {[%clk
00:00:08]} 31. Qf6 {[%emt 00:00:01] [%clk 00:00:25]} R8e7 {[%clk 00:00:09]} 32.
Nf7 {[%emt 00:00:07] [%clk 00:00:20]} 1-0

[Site "Europe Echecs"]

[Event "Championnat d'Europe de Blitz"]
[Date "2024.12.09"]
[White "Papasimakopoulos, Alexandros"]
[Black "Martins, Diogo Faria Oliveira"]
[WhiteElo "2379"]
[BlackElo "1961"]
[Round "5.54"]
[Result "1-0"]
[TimeControl "180+2"]

1. d4 {[%clk 00:03:03]} Nf6 {[%emt 00:00:01] [%clk 00:03:04]} 2. c4 {[%emt
00:00:03] [%clk 00:03:04]} c5 {[%emt 00:00:03] [%clk 00:03:01]} 3. Nf3 {[%clk
00:03:04]} cxd4 {[%emt 00:00:02] [%clk 00:03:01]} 4. Nxd4 {[%clk 00:03:06]} Nc6
{[%emt 00:00:01] [%clk 00:03:02]} 5. Nc3 {[%emt 00:00:01] [%clk 00:03:06]} g6
{[%clk 00:03:04]} 6. e4 {[%clk 00:03:07]} Nxd4 {[%emt 00:00:06] [%clk 00:03:00]}
7. Qxd4 {[%clk 00:03:08]} d6 {[%emt 00:00:01] [%clk 00:03:02]} 8. Be3 {[%emt
00:00:02] [%clk 00:03:08]} Bg7 {[%emt 00:00:01] [%clk 00:03:03]} 9. Qd2 {[%clk
00:03:09]} O-O {[%emt 00:00:02] [%clk 00:03:03]} 10. f3 {[%emt 00:00:02] [%clk
00:03:10]} a5 {[%emt 00:00:02] [%clk 00:03:04]} 11. Be2 {[%emt 00:00:01] [%clk
00:03:10]} a4 {[%clk 00:03:05]} 12. O-O {[%emt 00:00:03] [%clk 00:03:09]} Qa5
{[%emt 00:00:02] [%clk 00:03:06]} 13. Rac1 {[%clk 00:03:10]} Be6 {[%emt
00:00:16]} 14. Nd5 {[%clk 00:02:58]} Qxd2 {[%clk 00:02:57]} 15. Nxe7+ {[%emt
00:00:19] [%clk 00:02:52]} Kh8 {[%clk 00:02:58]} 16. Bxd2 {[%emt 00:00:02] [%clk
00:02:53]} Rfe8 {[%emt 00:00:03] [%clk 00:02:58]} 17. Nd5 {[%emt 00:00:02] [%clk
00:02:53]} Nxd5 {[%emt 00:00:02] [%clk 00:02:58]} 18. cxd5 {[%emt 00:00:01]
[%clk 00:02:53]} Bxd5 {[%emt 00:00:02] [%clk 00:02:58]} 19. Bb5 {[%emt 00:00:09]
[%clk 00:02:46]} Re5 {[%clk 00:02:59]} 20. Bc3 {[%emt 00:00:08] [%clk 00:02:41]}
Bxa2 {[%emt 00:00:05] [%clk 00:02:55]} 21. Bxe5 {[%emt 00:00:12] [%clk
00:02:30]} Bxe5 {[%emt 00:00:01] [%clk 00:02:56]} 22. Rc2 {[%emt 00:00:04] [%clk
00:02:28]} Bd4+ {[%emt 00:00:22] [%clk 00:02:37]} 23. Kh1 {[%clk 00:02:29]} Ra5
{[%emt 00:00:25] [%clk 00:02:14]} 24. Rd1 {[%emt 00:00:14] [%clk 00:02:17]} Bc5
{[%emt 00:00:19] [%clk 00:01:57]} 25. Bc4 {[%emt 00:00:05] [%clk 00:02:14]} Bxc4
{[%emt 00:00:11] [%clk 00:01:48]} 26. Rxc4 {[%clk 00:02:15]} b5 {[%emt 00:00:01]
[%clk 00:01:49]} 27. Rc2 {[%emt 00:00:02] [%clk 00:02:15]} b4 {[%emt 00:00:16]
[%clk 00:01:36]} 28. g3 {[%emt 00:00:05] [%clk 00:02:12]} a3 {[%emt 00:00:13]
[%clk 00:01:25]} 29. bxa3 {[%clk 00:02:13]} bxa3 {[%emt 00:00:03] [%clk
00:01:24]} 30. Ra2 {[%clk 00:02:14]} h5 {[%emt 00:00:07] [%clk 00:01:19]} 31.
Rd3 {[%emt 00:00:06] [%clk 00:02:10]} Kg7 {[%emt 00:00:02] [%clk 00:01:19]} 32.
Rb3 {[%emt 00:00:02] [%clk 00:02:09]} Kf6 {[%emt 00:00:03] [%clk 00:01:18]} 33.
f4 {[%emt 00:00:04] [%clk 00:02:07]} Ke6 {[%emt 00:00:02] [%clk 00:01:18]} 34.
Rc3 {[%emt 00:00:16] [%clk 00:01:53]} Rb5 {[%emt 00:00:09] [%clk 00:01:11]} 35.
Kg2 {[%emt 00:00:21] [%clk 00:01:34]} Bd4 {[%emt 00:00:14] [%clk 00:01:00]} 36.
Rcxa3 {[%emt 00:00:03] [%clk 00:01:33]} Rb1 {[%emt 00:00:04] [%clk 00:00:57]}
37. Ra4 {[%emt 00:00:08] [%clk 00:01:28]} Bc5 {[%emt 00:00:07] [%clk 00:00:51]}
38. Ra1 {[%emt 00:00:14] [%clk 00:01:16]} Rb2+ {[%emt 00:00:02] [%clk 00:00:51]}
39. Kh3 {[%emt 00:00:03] [%clk 00:01:15]} h4 {[%emt 00:00:08] [%clk 00:00:46]}
40. R4a2 {[%emt 00:00:04] [%clk 00:01:13]} Rb4 {[%emt 00:00:06] [%clk 00:00:41]}
41. Kxh4 {[%emt 00:00:08] [%clk 00:01:07]} Rxe4 {[%emt 00:00:02] [%clk
00:00:41]} 42. Kg5 {[%emt 00:00:07] [%clk 00:01:03]} Bd4 {[%emt 00:00:11] [%clk
00:00:32]} 43. Rd1 {[%emt 00:00:07] [%clk 00:00:57]} Bf6+ {[%emt 00:00:02] [%clk
00:00:32]} 44. Kg4 {[%emt 00:00:07] [%clk 00:00:52]} g5 {[%emt 00:00:11] [%clk
00:00:24]} 45. Rad2 {[%emt 00:00:14] [%clk 00:00:40]} Be7 {[%emt 00:00:06] [%clk
00:00:20]} 46. Rd4 {[%emt 00:00:04] [%clk 00:00:37]} Re2 {[%emt 00:00:10] [%clk
00:00:13]} 47. R1d2 {[%clk 00:00:39]} Rxd2 {[%emt 00:00:04] [%clk 00:00:11]} 48.
Rxd2 {[%emt 00:00:01] [%clk 00:00:40]} gxf4 {[%clk 00:00:11]} 49. Kxf4 {[%emt
00:00:05] [%clk 00:00:37]} f5 {[%emt 00:00:03] [%clk 00:00:11]} 50. Re2+ {[%emt
00:00:05] [%clk 00:00:34]} Kf6 {[%emt 00:00:02] [%clk 00:00:10]} 51. Rxe7 {[%emt
00:00:02] [%clk 00:00:35]} 1-0

[Site "Europe Echecs"]